[Event "Late-Titled-Tuesday-Blitz-June-18-2024"]
[Site "Chess.com"]
[Date "2024.06.18"]
[Round "9"]
[White "Zq1"]
[Black "szefru"]
[Result "0-1"]
[WhiteElo "2486"]
[BlackElo "2367"]
[TimeControl "180+1"]
[EndTime "15:46:42 PDT"]
[Termination "szefru won on time"]

1. Nf3 {[%clk 0:03:00.9]} 1... Nf6 {[%clk 0:02:57.3]} 2. c4 {[%clk 0:03:00.9]}
2... g6 {[%clk 0:02:57.1]} 3. Nc3 {[%clk 0:03:00.7]} 3... Bg7 {[%clk 0:02:57.7]}
4. e4 {[%clk 0:03:00.7]} 4... d6 {[%clk 0:02:56.9]} 5. d4 {[%clk 0:03:00.6]}
5... O-O {[%clk 0:02:56.6]} 6. Be2 {[%clk 0:03:00.7]} 6... e5 {[%clk 0:02:55.1]}
7. O-O {[%clk 0:03:00.2]} 7... Nc6 {[%clk 0:02:55]} 8. d5 {[%clk 0:03:00.2]}
8... Ne7 {[%clk 0:02:55.6]} 9. Ne1 {[%clk 0:03:00.4]} 9... Nd7 {[%clk
0:02:55.4]} 10. Be3 {[%clk 0:03:00.9]} 10... f5 {[%clk 0:02:55.6]} 11. f3 {[%clk
0:03:01.3]} 11... f4 {[%clk 0:02:55.7]} 12. Bf2 {[%clk 0:03:01.8]} 12... g5
{[%clk 0:02:55.4]} 13. Nb5 {[%clk 0:03:02.3]} 13... Nf6 {[%clk 0:02:50.2]} 14.
Nxa7 {[%clk 0:03:01.3]} 14... Bd7 {[%clk 0:02:50.1]} 15. Nb5 {[%clk 0:03:01.3]}
15... h5 {[%clk 0:02:48.8]} 16. Nc3 {[%clk 0:02:54.3]} 16... g4 {[%clk
0:02:48.4]} 17. Bh4 {[%clk 0:02:54.2]} 17... g3 {[%clk 0:02:42.9]} 18. hxg3
{[%clk 0:02:30.4]} 18... Ng6 {[%clk 0:02:42.4]} 19. Nd3 {[%clk 0:02:01.4]} 19...
fxg3 {[%clk 0:01:57]} 20. Bxg3 {[%clk 0:01:58.9]} 20... Bh6 {[%clk 0:01:56.7]}
21. f4 {[%clk 0:01:55.9]} 21... h4 {[%clk 0:01:47.9]} 22. Bh2 {[%clk 0:01:50]}
22... exf4 {[%clk 0:01:39.2]} 23. Nxf4 {[%clk 0:01:33.4]} 23... Ne5 {[%clk
0:01:38.9]} 24. Ne6 {[%clk 0:01:29.9]} 24... Bxe6 {[%clk 0:01:38]} 25. dxe6
{[%clk 0:01:30.1]} 25... Be3+ {[%clk 0:01:29.4]} 26. Kh1 {[%clk 0:01:29.1]}
26... Qe7 {[%clk 0:01:23.2]} 27. Nd5 {[%clk 0:01:27.9]} 27... Qg7 {[%clk
0:00:50.7]} 28. Bxe5 {[%clk 0:01:11.4]} 28... dxe5 {[%clk 0:00:45.7]} 29. Nxf6+
{[%clk 0:01:10.5]} 29... Rxf6 {[%clk 0:00:42.9]} 30. e7 {[%clk 0:00:54.7]} 30...
Qxe7 {[%clk 0:00:33]} 31. Qd5+ {[%clk 0:00:50.4]} 31... Kg7 {[%clk 0:00:32.1]}
32. Rxf6 {[%clk 0:00:48.8]} 32... Qxf6 {[%clk 0:00:29.1]} 33. Rf1 {[%clk
0:00:48]} 33... Qe7 {[%clk 0:00:24.9]} 34. Qxb7 {[%clk 0:00:36.1]} 34... Rd8
{[%clk 0:00:22.4]} 35. Qb3 {[%clk 0:00:28.7]} 35... Bf4 {[%clk 0:00:22.3]} 36.
Qh3 {[%clk 0:00:26.1]} 36... Rd2 {[%clk 0:00:21.2]} 37. Qg4+ {[%clk 0:00:25.5]}
37... Kh6 {[%clk 0:00:17.5]} 38. b4 {[%clk 0:00:22.6]} 38... Rxa2 {[%clk
0:00:12]} 39. Qh5+ {[%clk 0:00:22.3]} 39... Kg7 {[%clk 0:00:12.2]} 40. Bg4
{[%clk 0:00:20.2]} 40... Qf7 {[%clk 0:00:07.7]} 41. Qxh4 {[%clk 0:00:16.1]}
41... Qg6 {[%clk 0:00:07.9]} 42. Qh5 {[%clk 0:00:15.7]} 42... Qxh5+ {[%clk
0:00:06.9]} 43. Bxh5 {[%clk 0:00:15.2]} 43... Rc2 {[%clk 0:00:07.3]} 44. c5
{[%clk 0:00:13.2]} 44... Bd2 {[%clk 0:00:07.5]} 45. Rf7+ {[%clk 0:00:10.7]}
45... Kh6 {[%clk 0:00:07.7]} 46. Bf3 {[%clk 0:00:09.6]} 46... Bf4 {[%clk
0:00:06.3]} 47. g4 {[%clk 0:00:09.4]} 47... Rb2 {[%clk 0:00:05.1]} 48. Rxc7
{[%clk 0:00:06.5]} 48... Rxb4 {[%clk 0:00:05.5]} 49. Rc6+ {[%clk 0:00:05.5]}
49... Kg5 {[%clk 0:00:06.4]} 50. Re6 {[%clk 0:00:04.6]} 50... Kh4 {[%clk
0:00:06.5]} 51. g5 {[%clk 0:00:04.3]} 51... Kg3 {[%clk 0:00:06.7]} 52. Bd1
{[%clk 0:00:02.1]} 52... Rd4 {[%clk 0:00:05.6]} 53. Be2 {[%clk 0:00:01.3]} 53...
Rxe4 {[%clk 0:00:05.4]} 0-1

[Event "Late-Titled-Tuesday-Blitz-June-18-2024"]
[Site "Chess.com"]
[Date "2024.06.18"]
[Round "9"]
[White "HamedWafa4"]
[Black "Patricius007"]
[Result "1-0"]
[WhiteElo "2659"]
[BlackElo "2546"]
[TimeControl "180+1"]
[EndTime "15:46:43 PDT"]
[Termination "HamedWafa4 won by checkmate"]

1. e4 {[%clk 0:03:00.9]} 1... e6 {[%clk 0:02:42]} 2. d4 {[%clk 0:03:00]} 2... d5
{[%clk 0:02:42.3]} 3. e5 {[%clk 0:03:00.3]} 3... c5 {[%clk 0:02:42.9]} 4. c3
{[%clk 0:03:00.6]} 4... Nc6 {[%clk 0:02:43.5]} 5. Nf3 {[%clk 0:03:01.2]} 5...
Qb6 {[%clk 0:02:44]} 6. Be2 {[%clk 0:03:01.7]} 6... Bd7 {[%clk 0:02:44.3]} 7.
O-O {[%clk 0:03:01.7]} 7... a5 {[%clk 0:02:44.9]} 8. Na3 {[%clk 0:02:45.8]} 8...
c4 {[%clk 0:02:43.9]} 9. Nc2 {[%clk 0:02:44.2]} 9... Nge7 {[%clk 0:02:43.3]} 10.
h4 {[%clk 0:02:42.7]} 10... Qc7 {[%clk 0:02:39.7]} 11. a4 {[%clk 0:02:35.8]}
11... f6 {[%clk 0:02:34.5]} 12. Bf4 {[%clk 0:02:32.4]} 12... Ng6 {[%clk
0:02:32.2]} 13. Bg3 {[%clk 0:02:32.1]} 13... fxe5 {[%clk 0:02:32.6]} 14. dxe5
{[%clk 0:02:30]} 14... Bc5 {[%clk 0:02:25.2]} 15. Ncd4 {[%clk 0:02:25.8]} 15...
Nxd4 {[%clk 0:02:21.1]} 16. cxd4 {[%clk 0:02:24.5]} 16... Bb4 {[%clk 0:02:17.6]}
17. h5 {[%clk 0:02:25.1]} 17... Ne7 {[%clk 0:02:16.9]} 18. h6 {[%clk 0:02:15.9]}
18... gxh6 {[%clk 0:02:11.8]} 19. Nh4 {[%clk 0:02:10.8]} 19... O-O-O {[%clk
0:02:11.3]} 20. Rc1 {[%clk 0:02:09.3]} 20... Kb8 {[%clk 0:02:07.7]} 21. Bf4
{[%clk 0:02:03.2]} 21... Rhg8 {[%clk 0:01:57.8]} 22. Bd2 {[%clk 0:01:52]} 22...
Ng6 {[%clk 0:01:55.3]} 23. Nxg6 {[%clk 0:01:48.7]} 23... hxg6 {[%clk 0:01:52.5]}
24. Qe1 {[%clk 0:01:42.3]} 24... Qb6 {[%clk 0:01:51.1]} 25. Bc3 {[%clk
0:01:30.9]} 25... g5 {[%clk 0:01:48]} 26. Rb1 {[%clk 0:01:22.9]} 26... Bxa4
{[%clk 0:01:41.8]} 27. Ra1 {[%clk 0:01:22.9]} 27... Bd7 {[%clk 0:01:33.4]} 28.
Qd2 {[%clk 0:01:05.1]} 28... Rdf8 {[%clk 0:01:32.1]} 29. Rfb1 {[%clk 0:01:03.9]}
29... Bc6 {[%clk 0:00:51.3]} 30. Bg4 {[%clk 0:00:56.6]} 30... Be8 {[%clk
0:00:47.9]} 31. Rc1 {[%clk 0:00:45.6]} 31... h5 {[%clk 0:00:43.9]} 32. Bd1
{[%clk 0:00:40.9]} 32... g4 {[%clk 0:00:43.5]} 33. b3 {[%clk 0:00:38]} 33... g3
{[%clk 0:00:37.9]} 34. f4 {[%clk 0:00:26.6]} 34... Bxc3 {[%clk 0:00:34.3]} 35.
Rxc3 {[%clk 0:00:21.9]} 35... Bb5 {[%clk 0:00:33.8]} 36. Rb1 {[%clk 0:00:19.1]}
36... Qa7 {[%clk 0:00:27.7]} 37. Bf3 {[%clk 0:00:14]} 37... Rg7 {[%clk
0:00:23.8]} 38. bxc4 {[%clk 0:00:12.4]} 38... Bxc4 {[%clk 0:00:23.9]} 39. Ra3
{[%clk 0:00:12.2]} 39... a4 {[%clk 0:00:20.5]} 40. Kh1 {[%clk 0:00:10.8]} 40...
h4 {[%clk 0:00:17.1]} 41. Qb4 {[%clk 0:00:10.6]} 41... Rxf4 {[%clk 0:00:14]} 42.
Rxa4 {[%clk 0:00:07.9]} 42... Qxa4 {[%clk 0:00:09.4]} 43. Qxa4 {[%clk
0:00:06.5]} 43... Rf8 {[%clk 0:00:06.9]} 44. Qb4 {[%clk 0:00:04.1]} 44... Rd8
{[%clk 0:00:05.7]} 45. Qb6 {[%clk 0:00:04.3]} 45... Rc7 {[%clk 0:00:05.3]} 46.
Qxe6 {[%clk 0:00:04.4]} 46... Rh8 {[%clk 0:00:03.1]} 47. Qf6 {[%clk 0:00:04.4]}
47... Rg8 {[%clk 0:00:03.1]} 48. e6 {[%clk 0:00:04.1]} 48... h3 {[%clk
0:00:03.3]} 49. gxh3 {[%clk 0:00:03.6]} 49... Bd3 {[%clk 0:00:02.7]} 50. Rd1
{[%clk 0:00:01.2]} 50... Be4 {[%clk 0:00:02.3]} 51. Bxe4 {[%clk 0:00:01.8]}
51... dxe4 {[%clk 0:00:02.9]} 52. Qf5 {[%clk 0:00:02.7]} 52... g2+ {[%clk
0:00:02.9]} 53. Kg1 {[%clk 0:00:03.1]} 53... e3 {[%clk 0:00:02.8]} 54. Qe5
{[%clk 0:00:03.7]} 54... e2 {[%clk 0:00:01.3]} 55. Qxe2 {[%clk 0:00:04.6]} 55...
Kc8 {[%clk 0:00:01.6]} 56. Qe5 {[%clk 0:00:05.1]} 56... Re8 {[%clk 0:00:02.5]}
57. d5 {[%clk 0:00:05.4]} 57... Rc2 {[%clk 0:00:02.9]} 58. d6 {[%clk 0:00:05.8]}
58... Rg8 {[%clk 0:00:03.4]} 59. d7+ {[%clk 0:00:06.7]} 59... Kd8 {[%clk
0:00:03.9]} 60. e7# {[%clk 0:00:07.3]} 1-0

[Event "Late-Titled-Tuesday-Blitz-June-18-2024"]
[Site "Chess.com"]
[Date "2024.06.18"]
[Round "9"]
[White "Statham_01"]
[Black "Igor_Lysyj"]
[Result "1-0"]
[WhiteElo "2738"]
[BlackElo "2840"]
[TimeControl "180+1"]
[EndTime "15:46:46 PDT"]
[Termination "Statham_01 won on time"]

1. e4 {[%clk 0:03:00.9]} 1... e5 {[%clk 0:02:59.7]} 2. Nf3 {[%clk 0:03:00.5]}
2... Nc6 {[%clk 0:03:00]} 3. c3 {[%clk 0:03:00]} 3... d5 {[%clk 0:02:54.3]} 4.
Bb5 {[%clk 0:02:59.2]} 4... dxe4 {[%clk 0:02:43.8]} 5. Nxe5 {[%clk 0:02:57]}
5... Qd5 {[%clk 0:02:35.7]} 6. Qa4 {[%clk 0:02:55.9]} 6... Ne7 {[%clk 0:02:31]}
7. f4 {[%clk 0:02:54.6]} 7... exf3 {[%clk 0:02:28.7]} 8. Nxf3 {[%clk 0:02:54.2]}
8... a6 {[%clk 0:02:25.8]} 9. Bc4 {[%clk 0:02:41.2]} 9... Qe4+ {[%clk
0:02:25.6]} 10. Kf2 {[%clk 0:02:41.4]} 10... Be6 {[%clk 0:02:25.8]} 11. d3
{[%clk 0:02:36.5]} 11... Qf5 {[%clk 0:02:13]} 12. Bxe6 {[%clk 0:02:33.2]} 12...
Qxe6 {[%clk 0:02:11.1]} 13. Re1 {[%clk 0:02:31.1]} 13... Qf5 {[%clk 0:02:11.2]}
14. d4 {[%clk 0:02:07.3]} 14... O-O-O {[%clk 0:02:10.9]} 15. Be3 {[%clk
0:02:01.9]} 15... Nd5 {[%clk 0:02:09.8]} 16. Nd2 {[%clk 0:01:59.7]} 16... Bd6
{[%clk 0:01:47.4]} 17. Kg1 {[%clk 0:01:49.4]} 17... Rde8 {[%clk 0:01:42.4]} 18.
Bf2 {[%clk 0:01:46.3]} 18... Nf4 {[%clk 0:01:38]} 19. Nc4 {[%clk 0:01:27.4]}
19... Qg4 {[%clk 0:01:35.8]} 20. Nxd6+ {[%clk 0:01:26.4]} 20... cxd6 {[%clk
0:01:35.6]} 21. Bg3 {[%clk 0:01:24]} 21... Ne2+ {[%clk 0:01:18.4]} 22. Kf2
{[%clk 0:01:15.7]} 22... Nxg3 {[%clk 0:01:18.1]} 23. hxg3 {[%clk 0:01:15.8]}
23... Qd7 {[%clk 0:01:03]} 24. b4 {[%clk 0:01:08.5]} 24... Ne5 {[%clk
0:00:55.1]} 25. Qc2 {[%clk 0:00:50.8]} 25... Ng4+ {[%clk 0:00:53.7]} 26. Kg1
{[%clk 0:00:49.9]} 26... h6 {[%clk 0:00:49.2]} 27. c4 {[%clk 0:00:48.4]} 27...
Rxe1+ {[%clk 0:00:48]} 28. Rxe1 {[%clk 0:00:48]} 28... Re8 {[%clk 0:00:48.2]}
29. Rc1 {[%clk 0:00:26.2]} 29... Kb8 {[%clk 0:00:47.9]} 30. c5 {[%clk
0:00:23.2]} 30... dxc5 {[%clk 0:00:47.7]} 31. bxc5 {[%clk 0:00:20.6]} 31... Re3
{[%clk 0:00:34.8]} 32. Qb2 {[%clk 0:00:10.6]} 32... Qb5 {[%clk 0:00:23.8]} 33.
Qd2 {[%clk 0:00:04.7]} 33... Qe2 {[%clk 0:00:19.9]} 34. Qxe2 {[%clk 0:00:03.6]}
34... Rxe2 {[%clk 0:00:20.4]} 35. d5 {[%clk 0:00:03.4]} 35... Ne3 {[%clk
0:00:19.5]} 36. d6 {[%clk 0:00:04]} 36... Rxg2+ {[%clk 0:00:18.9]} 37. Kh1
{[%clk 0:00:04.6]} 37... Rxg3 {[%clk 0:00:14.8]} 38. Ne5 {[%clk 0:00:04.4]}
38... Kc8 {[%clk 0:00:13.2]} 39. c6 {[%clk 0:00:04.1]} 39... bxc6 {[%clk
0:00:12]} 40. Rxc6+ {[%clk 0:00:05]} 40... Kd8 {[%clk 0:00:11.7]} 41. Rc7 {[%clk
0:00:05.7]} 41... Rh3+ {[%clk 0:00:05.7]} 42. Kg1 {[%clk 0:00:05.9]} 42... Rg3+
{[%clk 0:00:05.1]} 43. Kh2 {[%clk 0:00:06.4]} 43... Ng4+ {[%clk 0:00:05.1]} 44.
Kxg3 {[%clk 0:00:05.4]} 44... Nxe5 {[%clk 0:00:05.4]} 45. Ra7 {[%clk 0:00:06]}
45... Nc6 {[%clk 0:00:04.7]} 46. Rxf7 {[%clk 0:00:05.3]} 46... g5 {[%clk
0:00:04.8]} 47. Rh7 {[%clk 0:00:05.4]} 47... a5 {[%clk 0:00:03.9]} 48. Rxh6
{[%clk 0:00:05.7]} 48... Kd7 {[%clk 0:00:04.5]} 49. Kg4 {[%clk 0:00:05.5]} 49...
Nb4 {[%clk 0:00:03.3]} 50. a3 {[%clk 0:00:05.4]} 50... Nc2 {[%clk 0:00:03.4]}
51. a4 {[%clk 0:00:05.7]} 51... Ne3+ {[%clk 0:00:01.1]} 52. Kxg5 {[%clk
0:00:05.4]} 52... Nc4 {[%clk 0:00:01]} 53. Kf4 {[%clk 0:00:03.5]} 53... Nxd6
{[%clk 0:00:01.1]} 54. Rh5 {[%clk 0:00:02.3]} 1-0

[Event "Late-Titled-Tuesday-Blitz-June-18-2024"]
[Site "Chess.com"]
[Date "2024.06.18"]
[Round "9"]
[White "A4RookA3"]
[Black "noblerone"]
[Result "1-0"]
[WhiteElo "2451"]
[BlackElo "2514"]
[TimeControl "180+1"]
[EndTime "15:46:49 PDT"]
[Termination "A4RookA3 won on time"]

1. d4 {[%clk 0:02:54.1]} 1... d5 {[%clk 0:02:59.2]} 2. Bf4 {[%clk 0:02:53.6]}
2... Nf6 {[%clk 0:02:55.9]} 3. e3 {[%clk 0:02:54]} 3... e6 {[%clk 0:02:54.4]} 4.
Nf3 {[%clk 0:02:54.4]} 4... Bd6 {[%clk 0:02:54.2]} 5. Nbd2 {[%clk 0:02:55]} 5...
c5 {[%clk 0:02:50.1]} 6. dxc5 {[%clk 0:02:54.5]} 6... Bxc5 {[%clk 0:02:49.8]} 7.
c4 {[%clk 0:02:54.2]} 7... O-O {[%clk 0:02:48.8]} 8. Bd3 {[%clk 0:02:54.4]} 8...
Nc6 {[%clk 0:02:46.6]} 9. O-O {[%clk 0:02:54.2]} 9... a6 {[%clk 0:02:38.4]} 10.
Rc1 {[%clk 0:02:53.4]} 10... Be7 {[%clk 0:02:33.5]} 11. a3 {[%clk 0:02:49.6]}
11... Bd7 {[%clk 0:02:27.4]} 12. h3 {[%clk 0:02:34.5]} 12... Rc8 {[%clk
0:02:24.6]} 13. Qe2 {[%clk 0:02:29.9]} 13... dxc4 {[%clk 0:02:14.6]} 14. Nxc4
{[%clk 0:02:29.2]} 14... b5 {[%clk 0:02:13.8]} 15. Nd6 {[%clk 0:02:28.6]} 15...
Bxd6 {[%clk 0:01:58.6]} 16. Bxd6 {[%clk 0:02:29.5]} 16... Re8 {[%clk 0:01:59.1]}
17. Rfd1 {[%clk 0:02:27.9]} 17... Qb6 {[%clk 0:01:47]} 18. Ne5 {[%clk
0:02:13.4]} 18... Nxe5 {[%clk 0:01:44.4]} 19. Bxe5 {[%clk 0:02:14.3]} 19... Bc6
{[%clk 0:01:13.2]} 20. Bxf6 {[%clk 0:02:03.5]} 20... gxf6 {[%clk 0:01:13.4]} 21.
Qg4+ {[%clk 0:02:04.2]} 21... Kf8 {[%clk 0:01:07.6]} 22. Qh4 {[%clk 0:02:02.1]}
22... Kg7 {[%clk 0:00:27.6]} 23. Qxh7+ {[%clk 0:02:00.6]} 23... Kf8 {[%clk
0:00:27.8]} 24. Be4 {[%clk 0:01:11.4]} 24... Bxe4 {[%clk 0:00:24.1]} 25. Qxe4
{[%clk 0:01:12.3]} 25... Kg7 {[%clk 0:00:19.2]} 26. Qg4+ {[%clk 0:01:08.1]}
26... Kf8 {[%clk 0:00:19.2]} 27. Qf4 {[%clk 0:01:08.8]} 27... Kg7 {[%clk
0:00:16.4]} 28. Rxc8 {[%clk 0:00:59.4]} 28... Rxc8 {[%clk 0:00:17.3]} 29. Rd7
{[%clk 0:00:56.2]} 29... Qc6 {[%clk 0:00:14.6]} 30. Re7 {[%clk 0:00:50.9]} 30...
e5 {[%clk 0:00:08.6]} 31. Qg4+ {[%clk 0:00:35.3]} 31... Kf8 {[%clk 0:00:08.9]}
32. Ra7 {[%clk 0:00:36.1]} 32... Rc7 {[%clk 0:00:07.9]} 33. Rxc7 {[%clk
0:00:28.9]} 33... Qxc7 {[%clk 0:00:08.2]} 34. h4 {[%clk 0:00:23.3]} 34... Qc1+
{[%clk 0:00:07.9]} 35. Kh2 {[%clk 0:00:23.7]} 35... Qxb2 {[%clk 0:00:08.8]} 36.
Qb4+ {[%clk 0:00:02.6]} 36... Qxb4 {[%clk 0:00:06.7]} 37. axb4 {[%clk
0:00:03.5]} 37... f5 {[%clk 0:00:05.1]} 38. Kg1 {[%clk 0:00:02.8]} 38... Ke7
{[%clk 0:00:04]} 39. f3 {[%clk 0:00:02.9]} 39... Kf6 {[%clk 0:00:04.1]} 40. Kf2
{[%clk 0:00:03.2]} 40... f4 {[%clk 0:00:04.5]} 41. g4 {[%clk 0:00:01.6]} 41...
a5 {[%clk 0:00:03.3]} 42. bxa5 {[%clk 0:00:01.6]} 42... b4 {[%clk 0:00:03.8]}
43. a6 {[%clk 0:00:02.1]} 43... b3 {[%clk 0:00:03.3]} 44. a7 {[%clk 0:00:02.8]}
44... b2 {[%clk 0:00:04.2]} 45. a8=Q {[%clk 0:00:03.3]} 45... b1=Q {[%clk
0:00:05]} 46. Qc6+ {[%clk 0:00:03.1]} 46... Kg7 {[%clk 0:00:05.1]} 47. Qc3
{[%clk 0:00:01.7]} 47... Qa2+ {[%clk 0:00:05.1]} 48. Kf1 {[%clk 0:00:01.4]}
48... Qb1+ {[%clk 0:00:04.7]} 49. Kf2 {[%clk 0:00:01.8]} 49... Qa2+ {[%clk
0:00:05.2]} 50. Kf1 {[%clk 0:00:02.2]} 50... Qd5 {[%clk 0:00:05.5]} 51. exf4
{[%clk 0:00:02.1]} 51... Qb5+ {[%clk 0:00:03.7]} 52. Kf2 {[%clk 0:00:02.4]}
52... f6 {[%clk 0:00:03.2]} 53. fxe5 {[%clk 0:00:02.7]} 53... fxe5 {[%clk
0:00:03.4]} 54. Qe3 {[%clk 0:00:03.2]} 54... Qb2+ {[%clk 0:00:03.2]} 55. Qe2
{[%clk 0:00:03.7]} 55... Qb8 {[%clk 0:00:03.4]} 56. Kg2 {[%clk 0:00:03.2]} 56...
Kf6 {[%clk 0:00:03]} 57. h5 {[%clk 0:00:03.4]} 57... Qb7 {[%clk 0:00:02.2]} 58.
Qc2 {[%clk 0:00:02.9]} 1-0

[Event "Late-Titled-Tuesday-Blitz-June-18-2024"]
[Site "Chess.com"]
[Date "2024.06.18"]
[Round "9"]
[White "ChessWarrior7197"]
[Black "pouya21"]
[Result "1/2-1/2"]
[WhiteElo "3146"]
[BlackElo "2828"]
[TimeControl "180+1"]
[EndTime "15:46:51 PDT"]
[Termination "Game drawn by stalemate"]

1. a3 {[%clk 0:03:00.9]} 1... Nf6 {[%clk 0:02:57.8]} 2. Nf3 {[%clk 0:03:00.4]}
2... d5 {[%clk 0:02:56.7]} 3. d4 {[%clk 0:02:59.3]} 3... e6 {[%clk 0:02:49]} 4.
e3 {[%clk 0:02:56.2]} 4... c5 {[%clk 0:02:46.3]} 5. dxc5 {[%clk 0:02:56]} 5...
Bxc5 {[%clk 0:02:46.2]} 6. b4 {[%clk 0:02:56.6]} 6... Be7 {[%clk 0:02:46.6]} 7.
Bb2 {[%clk 0:02:57]} 7... O-O {[%clk 0:02:47]} 8. c4 {[%clk 0:02:55.8]} 8...
dxc4 {[%clk 0:02:44.2]} 9. Qxd8 {[%clk 0:02:56.7]} 9... Rxd8 {[%clk 0:02:44.6]}
10. Bxc4 {[%clk 0:02:56.9]} 10... b6 {[%clk 0:02:43.5]} 11. Nbd2 {[%clk
0:02:56]} 11... Bb7 {[%clk 0:02:43.7]} 12. Ke2 {[%clk 0:02:54.1]} 12... a5
{[%clk 0:02:35.5]} 13. b5 {[%clk 0:02:52.8]} 13... Nbd7 {[%clk 0:02:33.2]} 14.
Bd4 {[%clk 0:02:37.6]} 14... Bc5 {[%clk 0:02:25]} 15. Nb3 {[%clk 0:02:26]} 15...
Bxd4 {[%clk 0:02:20.2]} 16. Nbxd4 {[%clk 0:02:26.9]} 16... Rac8 {[%clk
0:02:13.5]} 17. Rhc1 {[%clk 0:02:27.4]} 17... Ne4 {[%clk 0:01:55.5]} 18. Rc2
{[%clk 0:02:15.8]} 18... Rc5 {[%clk 0:01:46.3]} 19. Rac1 {[%clk 0:02:08]} 19...
Nd6 {[%clk 0:01:40.9]} 20. Bd3 {[%clk 0:02:00.9]} 20... Rdc8 {[%clk 0:01:13.4]}
21. Rxc5 {[%clk 0:01:58.6]} 21... bxc5 {[%clk 0:01:06.3]} 22. Nc6 {[%clk
0:01:53.5]} 22... Bxc6 {[%clk 0:01:02]} 23. bxc6 {[%clk 0:01:54.4]} 23... Rxc6
{[%clk 0:01:02.8]} 24. Nd2 {[%clk 0:01:55]} 24... Rb6 {[%clk 0:00:55.7]} 25. Rc2
{[%clk 0:01:45.4]} 25... Kf8 {[%clk 0:00:51.5]} 26. h4 {[%clk 0:01:44.7]} 26...
h6 {[%clk 0:00:51.2]} 27. g4 {[%clk 0:01:43.3]} 27... Ke7 {[%clk 0:00:51.7]} 28.
f4 {[%clk 0:01:43.5]} 28... Rb8 {[%clk 0:00:32.9]} 29. h5 {[%clk 0:01:41]} 29...
Rc8 {[%clk 0:00:28.4]} 30. Kf3 {[%clk 0:01:24]} 30... Nb6 {[%clk 0:00:21.7]} 31.
Rb2 {[%clk 0:01:21.5]} 31... Rb8 {[%clk 0:00:22]} 32. Rc2 {[%clk 0:01:20.2]}
32... Na4 {[%clk 0:00:18.6]} 33. Ne4 {[%clk 0:01:13.8]} 33... Nxe4 {[%clk
0:00:16.5]} 34. Bxe4 {[%clk 0:01:14.7]} 34... Rb3 {[%clk 0:00:16]} 35. Bc6
{[%clk 0:01:12.7]} 35... Rxa3 {[%clk 0:00:16.1]} 36. Bxa4 {[%clk 0:01:12.8]}
36... Rxa4 {[%clk 0:00:17]} 37. Rxc5 {[%clk 0:01:13.5]} 37... Ra1 {[%clk
0:00:17.1]} 38. Rc7+ {[%clk 0:01:13.6]} 38... Kf6 {[%clk 0:00:16.7]} 39. e4
{[%clk 0:01:08.7]} 39... Ra3+ {[%clk 0:00:16.6]} 40. Ke2 {[%clk 0:01:09.3]}
40... e5 {[%clk 0:00:17]} 41. g5+ {[%clk 0:01:01.3]} 41... hxg5 {[%clk
0:00:16.5]} 42. Rc6+ {[%clk 0:01:01.7]} 42... Ke7 {[%clk 0:00:17]} 43. fxg5
{[%clk 0:01:02.3]} 43... Rg3 {[%clk 0:00:16.8]} 44. Rc7+ {[%clk 0:00:53.1]}
44... Ke6 {[%clk 0:00:17.2]} 45. g6 {[%clk 0:00:52.9]} 45... fxg6 {[%clk
0:00:15.6]} 46. Rxg7 {[%clk 0:00:53.8]} 46... Kf6 {[%clk 0:00:15]} 47. Rg8
{[%clk 0:00:49]} 47... Rg4 {[%clk 0:00:11.8]} 48. hxg6 {[%clk 0:00:36.8]} 48...
Rxg6 {[%clk 0:00:12]} 49. Ra8 {[%clk 0:00:36.3]} 49... Rg2+ {[%clk 0:00:12.5]}
50. Kf3 {[%clk 0:00:35.8]} 50... Ra2 {[%clk 0:00:13]} 51. Kg4 {[%clk 0:00:36.5]}
51... Rg2+ {[%clk 0:00:12.6]} 52. Kh5 {[%clk 0:00:32.1]} 52... Re2 {[%clk
0:00:11.5]} 53. Ra6+ {[%clk 0:00:31.5]} 53... Ke7 {[%clk 0:00:11.9]} 54. Kg5
{[%clk 0:00:32.1]} 54... Rxe4 {[%clk 0:00:12.1]} 55. Kf5 {[%clk 0:00:32.7]}
55... Re1 {[%clk 0:00:12.7]} 56. Rxa5 {[%clk 0:00:32.4]} 56... Kd6 {[%clk
0:00:13.4]} 57. Kg4 {[%clk 0:00:30.3]} 57... Rf1 {[%clk 0:00:12.2]} 58. Kg3
{[%clk 0:00:31]} 58... Ke6 {[%clk 0:00:11.4]} 59. Kg2 {[%clk 0:00:26.6]} 59...
Rf4 {[%clk 0:00:11.6]} 60. Ra1 {[%clk 0:00:26.9]} 60... Kf5 {[%clk 0:00:11.7]}
61. Rf1 {[%clk 0:00:22.5]} 61... Kg4 {[%clk 0:00:11.9]} 62. Rxf4+ {[%clk
0:00:20.1]} 62... Kxf4 {[%clk 0:00:12.1]} 63. Kf2 {[%clk 0:00:20.4]} 63... Ke4
{[%clk 0:00:11.9]} 64. Ke2 {[%clk 0:00:21.1]} 64... Kd4 {[%clk 0:00:12.6]} 65.
Kd2 {[%clk 0:00:21.7]} 65... e4 {[%clk 0:00:13.5]} 66. Ke2 {[%clk 0:00:22.3]}
66... e3 {[%clk 0:00:14.4]} 67. Ke1 {[%clk 0:00:23]} 67... Ke4 {[%clk
0:00:15.3]} 68. Ke2 {[%clk 0:00:23.4]} 68... Kd4 {[%clk 0:00:15.3]} 69. Ke1
{[%clk 0:00:24.1]} 69... Kd3 {[%clk 0:00:16]} 70. Kd1 {[%clk 0:00:24.8]} 70...
e2+ {[%clk 0:00:16.9]} 71. Ke1 {[%clk 0:00:25.6]} 71... Ke3 {[%clk 0:00:17.8]}
1/2-1/2